bitfinex/quotes_ETHUSD_20220120
["timestamp","ask_amount","ask_price","bid_price","bid_amount"]
[1642666333575,0.6244,3137.1,3136.9,1.62936602]
[1642666333776,0.6244,3137.1,3137.0,0.00341054]
[1642666334378,0.6244,3137.1,3137.0,0.03317692]
[1642666334582,0.6244,3137.1,3137.0,1.65856397]
[1642666336184,0.6244,3137.1,3137.0,0.03317692]
[1642666336385,0.6244,3137.1,3137.0,1.65856397]
[1642666336788,0.1584,3137.1,3137.0,0.03317692]
[1642666337028,0.1584,3137.1,3137.0,5.5712575]
[1642666338031,0.1584,3137.1,3137.0,8.28814634]
[1642666338231,0.1584,3137.1,3137.0,5.85006576]
[1642666338631,0.1584,3137.1,3137.0,8.28821381]
[1642666338831,0.1584,3137.1,3137.0,5.85006576]
[1642666339535,0.1584,3137.1,3137.0,2.74917892]
[1642666340136,0.1584,3137.1,3137.0,6.00125314]
[1642666340336,0.1584,3137.1,3137.0,2.74917892]
[1642666340976,0.1584,3137.1,3137.0,3.04917892]
[1642666341378,0.1584,3137.1,3137.0,9.36647744]
[1642666341677,0.1584,3137.1,3137.0,6.30125314]
[1642666342377,0.48398972,3137.4,3137.0,3.04917892]
[1642666342578,0.48398972,3137.4,3137.2,2.43721509]
[1642666342878,0.48398972,3137.4,3137.3,2.71770727]
[1642666343580,0.1584,3137.5,3137.3,1.62552209]
[1642666343991,4.48373247,3137.7,3137.3,4.34241093]
[1642666344458,0.00088684,3137.6,3137.3,4.34241093]
[1642666345055,0.00088684,3137.6,3137.4,1.62470366]
[1642666345255,0.00088684,3137.6,3137.5,2.71688884]
[1642666345456,0.15928684,3137.6,3137.5,2.71688884]
[1642666346656,0.15928684,3137.6,3137.5,4.3415925]
[1642666346858,0.15928684,3137.6,3137.5,2.71688884]
[1642666347064,0.15928684,3137.6,3137.4,1.62470366]
[1642666347259,0.15928684,3137.6,3137.4,4.3415925]
[1642666348279,0.15928684,3137.6,3137.4,5.6923315]
[1642666348280,0.00088684,3137.6,3137.4,5.6923315]
[1642666348481,0.00088684,3137.6,3137.5,2.71688884]
[1642666349083,0.15928684,3137.6,3137.5,4.3415925]
[1642666349280,0.15928684,3137.6,3137.5,2.71688884]
[1642666349886,0.15928684,3137.6,3137.4,1.62470366]
[1642666350485,0.00088684,3137.6,3137.4,1.62470366]
[1642666350886,0.1584,3137.5,3137.4,1.62470366]
[1642666351290,0.00088684,3137.6,3137.5,0.4752]
[1642666351492,0.2858,3138.5,3137.6,4.4]
[1642666351692,0.2858,3138.5,3137.9,1.62301396]
[1642666351693,0.1584,3138.5,3137.9,1.62301396]
[1642666351936,0.00454738,3138.4,3137.9,1.62301396]
[1642666352136,0.00454738,3138.4,3137.9,1.92301396]
[1642666352340,0.00397896,3138.3,3138.0,2.71688884]
[1642666352736,0.2858,3138.5,3138.1,2.71688884]
[1642666352737,0.00341054,3138.2,3138.1,2.71688884]
[1642666352937,0.59681054,3138.2,3138.1,2.71688884]
[1642666353335,0.59681054,3138.2,3137.6,2.71688884]
[1642666353336,0.75521054,3138.2,3137.6,2.71688884]
[1642666353537,3.22211054,3138.2,3138.1,2.71688884]
[1642666353736,6.53546596,3138.2,3138.1,2.71688884]
[1642666353935,6.41693897,3138.2,3137.6,2.71688884]
[1642666354135,0.1274,3138.1,3137.6,2.71688884]
[1642666354338,0.466,3138.0,3137.6,2.71688884]
[1642666354541,0.92454,3137.9,3137.6,2.71688884]
[1642666354744,0.466,3137.8,3137.6,2.71688884]
[1642666354947,0.12653375,3137.7,3137.6,2.71688884]
[1642666355143,0.59253375,3137.7,3137.6,2.71688884]
[1642666355344,0.466,3137.7,3137.6,2.71688884]
[1642666355982,0.466,3137.7,3137.5,3.19208884]
[1642666356179,0.466,3137.7,3137.6,2.71688884]
[1642666357982,0.466,3137.7,3137.5,4.8151028]
[1642666358181,0.466,3137.7,3137.6,2.71688884]
[1642666362050,0.466,3137.7,3137.6,2.71656378]
[1642666363783,0.466,3137.7,3137.5,4.81477774]
[1642666363975,0.466,3137.7,3137.6,2.71656378]
[1642666364176,0.466,3137.7,3137.6,2.71655748]
[1642666366380,0.466,3137.7,3137.6,2.7058363]
[1642666369226,0.466,3137.7,3137.6,2.72090634]
[1642666372380,0.466,3137.7,3137.6,4.3439203]
[1642666374280,0.466,3137.7,3137.6,2.7058363]
[1642666374535,0.46497419,3137.7,3137.6,1.62333734]
[1642666375535,0.46497419,3137.7,3137.5,0.4752]
[1642666376334,0.46497419,3137.7,3137.6,1.62388756]
[1642666376536,0.46497419,3137.7,3137.6,1.62415148]
[1642666377135,0.46497419,3137.7,3137.5,0.4752]
[1642666377335,0.46497419,3137.7,3137.5,2.90972094]
[1642666378779,0.46497419,3137.7,3137.5,0.4752]
[1642666379382,0.46497419,3137.7,3137.5,2.90972094]
[1642666382126,0.46497419,3137.7,3137.6,2.43452094]
[1642666382527,0.46497419,3137.7,3137.5,2.90972094]
[1642666382728,0.46497419,3137.7,3137.6,2.43452094]
[1642666384733,0.15953684,3137.8,3137.7,5.84492257]
[1642666384935,0.15953684,3137.8,3137.7,9.39834879]
[1642666384936,0.1584,3137.8,3137.7,9.39834879]
[1642666385132,0.1584,3137.8,3137.7,6.14492257]
[1642666385546,0.1584,3137.8,3137.7,7.2583066]
[1642666386387,0.1584,3137.8,3137.7,9.97435343]
[1642666387794,0.1584,3137.8,3137.7,9.67435343]
[1642666387996,5.1678,3138.4,3137.8,0.79681]
[1642666388194,5.1678,3138.4,3138.3,1.62540859]
[1642666388396,5.1678,3138.4,3138.3,2.77287305]
[1642666388992,5.1678,3138.4,3138.3,5.48891988]
[1642666390830,5.1678,3138.4,3138.3,5.50151926]
[1642666391632,5.1678,3138.4,3138.3,3.87611067]
[1642666392231,0.1274,3138.7,3138.3,3.87611067]
[1642666392433,0.1584,3139.1,3138.5,0.79668]
[1642666392632,0.00568423,3138.6,3138.5,0.79668]
[1642666394183,0.00568423,3138.6,3138.3,6.25372673]
[1642666394385,0.00568423,3138.6,3138.3,3.81561384]
[1642666394587,0.00511581,3138.5,3138.3,2.75331384]
[1642666394987,0.00454738,3138.4,3138.3,2.75331384]
[1642666395189,0.00354543,3138.4,3138.3,2.75331384]
[1642666395990,0.00354543,3138.4,3138.3,2.74071446]
[1642666396490,0.00354543,3138.4,3138.3,5.39071446]
[1642666397139,0.00354543,3138.4,3138.3,8.46893094]
[1642666397338,0.00354543,3138.4,3138.3,5.84931446]
[1642666397541,0.00354543,3138.4,3138.3,7.82882735]
[1642666397741,0.00354543,3138.4,3138.3,5.39071446]
[1642666398741,0.00354543,3138.4,3138.3,5.69071446]
[1642666398944,0.00354543,3138.4,3138.3,3.04071446]
[1642666399944,0.00354543,3138.4,3138.3,2.74071446]
[1642666400445,0.00354543,3138.4,3138.3,4.84071446]
[1642666401077,0.00354543,3138.4,3138.3,4.85331384]
[1642666401279,0.00354543,3138.4,3138.3,5.67141384]
[1642666401482,0.1584,3139.1,3138.6,0.01063628]
[1642666401877,0.00284212,3138.9,3138.6,0.01063628]
[1642666402180,0.0022737,3138.8,3138.7,2.4321446]
[1642666402379,0.0022737,3138.8,3138.7,7.18204772]
[1642666402579,0.0022737,3138.8,3138.7,8.46295772]
[1642666402976,0.0022737,3138.8,3138.7,8.62155772]
[1642666403177,0.0022737,3138.8,3138.7,9.62155772]
[1642666405530,0.0022737,3138.8,3138.7,7.18951]
[1642666405931,0.0022737,3138.8,3138.7,7.20201588]
[1642666407532,0.0022737,3138.8,3138.7,7.50201588]
[1642666407732,0.0022737,3138.8,3138.7,10.21731265]
[1642666407933,0.0022737,3138.8,3138.7,11.42290673]
[1642666408188,0.1584,3139.6,3138.8,4.9]
[1642666408380,0.1584,3139.6,3138.9,5.92622987]
[1642666408579,0.1584,3139.6,3139.0,3.01529677]
[1642666408580,0.00397896,3139.5,3139.0,3.01529677]
[1642666408781,0.00397896,3139.5,3139.2,1.28638755]
[1642666408981,0.00341054,3139.4,3139.3,2.71529677]
[1642666410286,3.31941054,3139.4,3139.3,2.71529677]
[1642666410487,6.6888942,3139.4,3138.7,3.97290588]
[1642666410689,0.1274,3139.3,3138.8,2.71574125]
[1642666410886,0.13024212,3139.3,3138.8,2.71574125]
[1642666411087,0.00227369,3139.2,3138.9,2.71574125]
[1642666411287,0.1274,3139.1,3139.0,2.71574125]
[1642666411487,0.12910527,3139.1,3138.7,2.71574125]
[1642666411696,0.12910527,3139.1,3138.8,2.71574125]
[1642666411947,0.00113685,3139.0,3138.9,2.71574125]
[1642666412144,0.00113685,3139.0,3138.6,0.01063628]
[1642666412145,0.62553685,3139.0,3138.7,2.71574125]
[1642666412345,2.82980675,3138.9,3138.7,2.71574125]
[1642666412545,0.1584,3138.8,3138.7,2.71574125]
[1642666413745,0.6244,3138.8,3138.7,2.71574125]
[1642666413944,3.52823567,3138.8,3138.7,2.71574125]
[1642666414551,3.52823567,3138.8,3138.6,0.01063628]
[1642666414552,4.9,3138.7,3138.6,0.01063628]
[1642666414753,9.37963635,3138.7,3138.6,0.01063628]
[1642666415050,10.37963635,3138.7,3138.6,0.01177313]
[1642666415250,10.67963635,3138.7,3138.6,0.01177313]
[1642666415686,10.37963635,3138.7,3138.6,0.01177313]
[1642666415879,10.53803635,3138.7,3138.6,0.01177313]
[1642666418285,16.36003635,3138.7,3138.6,0.01177313]
[1642666420933,16.36363237,3138.7,3138.6,0.02623181]
[1642666421735,4.9,3138.6,3137.8,5.169]
[1642666421934,0.01204579,3138.1,3137.7,1.39492257]
[1642666422138,5.366,3138.0,3137.9,0.00397896]
[1642666422335,15.19651576,3138.0,3137.9,0.00397896]
[1642666422535,16.49651576,3138.0,3137.9,0.00397896]
[1642666423190,17.69192467,3138.0,3137.9,0.00397896]
[1642666424283,16.19651576,3138.0,3137.9,0.00397896]
[1642666424485,6.5738,3138.0,3137.9,0.00397896]
[1642666425487,6.4464,3138.0,3137.9,0.00397896]
[1642666425889,6.45338348,3138.0,3137.9,0.00397896]
[1642666427739,6.45237579,3138.0,3137.9,0.00397896]
[1642666428342,6.29397579,3138.0,3137.9,0.00397896]
[1642666430881,6.29159796,3138.0,3137.9,0.00397896]
[1642666434631,6.44999796,3138.0,3137.9,2.72046571]
[1642666435032,7.44999796,3138.0,3137.9,2.72046571]
[1642666436034,7.57739796,3138.0,3137.9,2.72046571]
[1642666436435,7.56670232,3138.0,3137.9,2.72046571]
[1642666436635,7.40270232,3138.0,3137.9,2.72046571]
[1642666437239,7.27530232,3138.0,3137.9,2.72046571]
[1642666437940,6.11690232,3138.0,3137.9,2.72046571]
[1642666445238,9.02134505,3138.0,3137.9,2.72046571]
[1642666445441,10.02134505,3138.0,3137.9,1.83954041]
[1642666445699,10.02134505,3138.0,3137.7,1.39492257]
[1642666445700,0.79722,3137.9,3137.7,1.39492257]
[1642666445889,4.9,3137.7,3137.5,0.4752]
[1642666446089,5.5934,3137.6,3137.5,0.4752]
[1642666446288,5.5934,3137.6,3137.0,0.25]
[1642666446289,3.6,3137.5,3137.0,0.25]
[1642666446491,3.6,3137.5,3137.0,0.01140131]
[1642666446492,0.5935,3137.4,3137.0,0.01140131]
[1642666446689,1.6732,3137.4,3137.1,0.00454739]
[1642666447692,3.13243628,3137.3,3137.1,0.00454739]
[1642666447890,6.63254151,3137.2,3137.1,0.00454739]
[1642666448092,4.9,3137.1,3137.0,0.01140131]
[1642666448293,15.12468983,3137.1,3137.0,0.01140131]
[1642666448490,16.12468983,3137.1,3137.0,0.01140131]
[1642666448690,3.85,3137.0,3136.7,1.398]
[1642666448891,3.98408582,3136.9,3136.7,1.398]
[1642666449092,3.71672822,3136.8,3136.7,1.398]
[1642666449537,3.71672822,3136.8,3136.7,1.40027369]
[1642666450943,3.71672822,3136.8,3136.7,1.41233102]
[1642666451739,3.87512822,3136.8,3136.7,1.41233102]
[1642666453281,3.87512822,3136.8,3136.7,0.01433102]
[1642666453484,9.37632822,3136.8,3136.7,0.01433102]
[1642666454195,18.65,3136.6,3135.9,0.01]
[1642666454495,6.122,3136.4,3135.9,0.01]
[1642666454692,5.69774,3136.2,3135.9,0.01]
[1642666454892,4.22854446,3136.0,3135.9,0.01]
[1642666455091,4.22854446,3136.0,3135.7,0.00932576]
[1642666455092,2.1,3135.9,3135.7,0.00932576]
[1642666455294,0.466,3135.8,3135.7,0.00932576]
[1642666455591,0.466,3135.8,3135.6,0.01]
[1642666455592,2.7,3135.7,3135.6,0.01]
[1642666455797,3.166,3135.7,3135.6,0.01]
[1642666455993,3.166,3135.7,3135.6,0.01227369]
[1642666456191,0.466,3135.7,3135.6,0.01227369]
[1642666456392,4.81533851,3135.8,3135.7,0.932]
[1642666456592,7.6294011,3135.8,3135.7,0.932]
[1642666456791,7.6294011,3135.8,3135.7,0.93370527]
[1642666457641,8.0954011,3135.8,3135.7,0.93370527]
[1642666458542,8.0954011,3135.8,3135.6,0.01]
[1642666458543,3.5,3135.7,3135.6,0.01]
[1642666458740,7.08312845,3135.7,3135.6,0.01]
[1642666459142,3.58312845,3135.7,3135.6,0.01]
[1642666460146,0.466,3135.7,3135.6,0.01]
[1642666460817,0.466,3135.7,3135.6,3.81]
[1642666461002,1.25010527,3136.3,3135.7,3.682]
[1642666461205,0.466,3136.2,3135.8,1.61419215]
[1642666461402,0.46884212,3136.2,3135.8,1.61419215]
[1642666461602,0.1584,3136.0,3135.8,1.61419215]
[1642666461804,0.6244,3136.0,3135.8,1.61419215]
[1642666462004,0.00113685,3135.9,3135.7,2.54619215]
[1642666462204,0.00113685,3135.9,3135.7,0.932]
[1642666462404,2.80771071,3135.9,3135.7,2.54619215]
[1642666462607,0.00113685,3135.9,3135.7,2.54619215]
[1642666462809,0.1584,3135.8,3135.7,2.54619215]
[1642666463006,0.1584,3135.8,3135.7,0.932]
[1642666463207,0.6244,3135.8,3135.7,0.932]
[1642666463409,3.50889736,3135.8,3135.7,0.932]
[1642666463609,3.06090473,3135.8,3135.7,0.932]
[1642666463812,0.6244,3135.8,3135.7,0.932]
[1642666464009,1.4221,3135.8,3135.7,0.932]
[1642666464210,1.4221,3135.8,3135.7,0.96217879]
[1642666465640,1.4221,3135.8,3135.7,3.68033254]
[1642666466043,0.6244,3135.8,3135.7,3.68033254]
[1642666466243,0.6244,3135.8,3135.7,2.57637094]
[1642666466644,0.466,3135.8,3135.7,5.29452469]
[1642666466846,0.6244,3135.8,3135.7,5.29452469]
[1642666467044,0.466,3135.8,3135.7,5.29452469]
[1642666467946,0.6244,3135.8,3135.7,5.29452469]
[1642666468187,0.6244,3135.8,3135.7,3.68033254]
[1642666469992,0.466,3135.8,3135.7,3.68033254]
[1642666470194,0.00113685,3135.9,3135.7,3.68033254]
[1642666470394,0.00113685,3135.9,3135.8,7.90756343]
[1642666470594,0.00113685,3135.9,3135.8,9.52175558]
[1642666470793,0.00113685,3135.9,3135.8,6.4323459]
[1642666471392,0.00113685,3135.9,3135.8,7.84886991]
[1642666471596,0.466,3136.6,3136.2,0.0022737]
[1642666472036,0.00341054,3136.5,3136.2,0.0022737]
[1642666472436,0.46884212,3136.4,3136.2,0.0022737]
[1642666472640,0.5935,3136.3,3136.2,0.0022737]
[1642666472836,0.59577369,3136.3,3136.2,0.0022737]
[1642666473036,1.05417369,3136.3,3136.2,0.0022737]
[1642666474341,1.05417369,3136.3,3136.2,0.03225508]
[1642666474541,3.50417369,3136.3,3136.2,0.03225508]
[1642666474742,3.50417369,3136.3,3136.2,2.75040883]
[1642666475545,4.50417369,3136.3,3136.2,2.75040883]
[1642666475788,4.9,3136.2,3135.9,0.00341055]
[1642666475989,3.31818503,3136.1,3135.9,0.00341055]
[1642666476189,1.69236804,3136.1,3135.9,0.00341055]
[1642666476389,3.1584,3136.0,3135.9,0.00341055]
[1642666476589,3.7519,3136.0,3135.9,0.00341055]
[1642666476791,6.21315666,3136.0,3135.9,0.00341055]
[1642666476989,3.7519,3136.0,3135.9,0.00341055]
[1642666478395,6.59820205,3136.0,3135.9,0.00341055]
[1642666478595,6.47070205,3136.0,3135.9,0.00341055]
[1642666479197,4.47070205,3136.0,3135.9,0.00341055]
[1642666479636,0.6244,3136.0,3135.9,0.00341055]
[1642666489846,0.6244,3136.0,3135.9,1.61658831]
[1642666490689,0.6244,3136.0,3135.9,1.62830817]
[1642666490888,0.6244,3136.0,3135.9,0.00341055]
[1642666493598,0.6244,3136.0,3135.9,2.43545827]
[1642666495053,0.466,3136.0,3135.9,2.43545827]
[1642666498053,0.6244,3136.0,3135.9,2.43545827]
[1642666498482,0.6244,3136.0,3135.9,2.43463229]
[1642666498681,0.466,3136.0,3135.9,2.43463229]
[1642666499589,0.15953684,3136.1,3136.0,3.798]
[1642666499788,0.15953684,3136.1,3136.0,6.51577559]
[1642666500192,0.00113684,3136.1,3136.0,6.51577559]
[1642666500389,0.00113684,3136.1,3136.0,7.91337832]
[1642666500587,0.00113684,3136.1,3136.0,11.45941711]
[1642666501087,0.00113684,3136.1,3136.0,7.91337832]
[1642666501289,0.00113684,3136.1,3136.0,11.24084442]
[1642666501489,0.00113684,3136.1,3136.0,7.91337832]
[1642666501689,0.00113684,3136.1,3136.0,11.0801407]
[1642666501960,0.00113684,3136.1,3136.0,7.91337832]
[1642666505565,0.15953684,3136.1,3136.0,5.51337832]
[1642666505787,0.15953684,3136.1,3136.0,6.04652387]
[1642666505987,0.15953684,3136.1,3136.0,8.76429946]
[1642666506188,0.1584,3136.1,3136.0,8.76429946]
[1642666506386,0.1584,3136.1,3136.0,8.76386606]
[1642666506990,0.1584,3136.5,3136.0,8.76386606]
[1642666507189,0.1275,3136.9,3136.2,2.43783203]
[1642666507389,0.1275,3136.9,3136.0,6.04609047]
[1642666507390,0.00511581,3136.8,3136.0,4.64848774]
[1642666507590,0.1584,3136.2,3136.0,4.64848774]
[1642666507792,0.1584,3136.2,3136.0,1.398]
[1642666507993,0.1584,3136.2,3136.0,4.64848774]
[1642666508891,0.1584,3136.2,3136.0,6.03935062]
[1642666509290,0.1584,3136.2,3136.1,3.25048774]
[1642666509742,0.16010527,3136.2,3136.1,3.25048774]
[1642666509944,0.16010527,3136.2,3136.0,6.03935062]
[1642666510355,0.16010527,3136.2,3136.0,2.78886288]
[1642666510356,0.00113684,3136.1,3136.0,2.78886288]
[1642666510647,0.00113684,3136.1,3136.0,6.03935062]
[1642666511647,0.00113684,3136.1,3136.0,2.78886288]
[1642666512747,0.00113684,3136.1,3136.0,6.0383829]
[1642666514395,2.09908926,3136.1,3136.0,4.64700202]
[1642666514596,0.1275,3136.9,3136.2,2.09044901]
[1642666514995,0.00397897,3136.8,3136.2,2.09044901]
[1642666515195,0.1275,3136.7,3136.2,2.09044901]
[1642666515395,0.13091055,3136.7,3136.2,2.09044901]
[1642666515596,0.00284212,3136.6,3136.2,2.09044901]
[1642666515996,0.0022737,3136.5,3136.2,2.09044901]
[1642666516397,0.00170528,3136.4,3136.2,2.09044901]
[1642666516799,0.00113685,3136.3,3136.2,2.09044901]
[1642666520702,0.00113685,3136.3,3135.3,0.01]
[1642666520703,4.9,3136.0,3135.3,0.01]
[1642666520997,6.30188835,3136.3,3135.1,0.01]
[1642666520998,4.35,3135.3,3135.1,0.01]
[1642666521192,6.122,3135.4,3135.1,0.01]
[1642666521193,13.82547434,3135.2,3135.1,0.01]
[1642666521395,14.82547434,3135.2,3135.1,0.01]
[1642666521603,14.97445242,3135.2,3135.1,0.01]
[1642666521795,14.97445242,3135.2,3134.8,0.01]
[1642666521796,4.9,3135.1,3134.8,0.01]
[1642666521997,14.76073368,3135.1,3134.8,0.01]
[1642666522197,14.76073368,3135.1,3135.0,0.01625265]
[1642666522198,15.76073368,3135.1,3135.0,0.01625265]
[1642666522398,7.7155,3135.1,3135.0,2.73537481]
[1642666522597,7.4155,3135.1,3135.0,2.73537481]
[1642666522798,7.7155,3135.1,3135.0,2.73537481]
[1642666522998,10.67731689,3135.1,3135.0,2.73537481]
[1642666523601,7.7155,3135.1,3135.0,2.73537481]
[1642666524441,7.4155,3135.1,3135.0,2.73537481]
[1642666525646,10.09801564,3135.1,3135.0,2.73537481]
[1642666525845,6.4155,3135.1,3135.0,2.73537481]
[1642666526047,6.288,3135.1,3135.0,2.73537481]
[1642666526446,8.67870291,3135.1,3135.0,2.73537481]
[1642666526647,6.288,3135.1,3135.0,2.73537481]
[1642666528048,6.288,3135.1,3135.0,5.05890624]
[1642666528304,0.466,3135.5,3135.0,3.43997481]
[1642666528502,0.466,3135.4,3135.1,2.71912216]
[1642666528704,0.466,3135.3,3135.1,0.00568423]
[1642666528904,0.79772,3135.5,3135.2,2.72423797]
[1642666529101,0.79772,3135.5,3135.3,2.71912216]
[1642666529301,0.466,3135.4,3135.3,0.00454738]
[1642666529506,0.466,3135.4,3135.0,1.62896247]
[1642666532038,0.466,3135.4,3135.0,0.01]
[1642666532439,2.75909947,3135.3,3135.0,0.01]
[1642666532639,0.466,3135.2,3135.0,0.01]
[1642666534038,1.26379,3135.2,3135.0,0.01]
[1642666536694,0.466,3135.2,3135.0,0.01]
[1642666537696,0.79781,3135.1,3135.0,0.01]
[1642666537895,4.30054642,3135.4,3135.1,1.59561999]
[1642666538093,0.466,3135.3,3135.1,1.59561999]
[1642666538695,2.74076149,3135.2,3135.1,1.59561999]
[1642666538895,3.33426149,3135.2,3135.1,1.59561999]
[1642666539094,0.5935,3135.2,3135.1,1.60130422]
[1642666539552,1.3913,3135.2,3135.1,1.60130422]
[1642666542455,4.22355919,3135.2,3135.1,1.60130422]
[1642666542656,4.22355919,3135.2,3135.0,0.01]
[1642666542657,4.65,3135.1,3135.0,0.01]
[1642666542856,9.06343788,3135.1,3135.0,0.01]
[1642666543056,4.9435,3135.1,3135.0,0.01]
[1642666543501,2.45,3135.0,3134.3,1.53896247]
[1642666543697,0.79796,3134.7,3134.2,1.53896247]
[1642666543896,0.466,3134.6,3134.4,0.00397896]
[1642666544097,0.5935,3134.6,3134.4,0.00397896]
[1642666544397,0.5935,3134.6,3134.5,2.71900833]
[1642666544799,3.31367489,3134.6,3134.5,2.72241887]
[1642666545001,3.1753816,3134.6,3134.5,0.00341054]
[1642666545200,0.466,3134.6,3134.5,0.00341054]
[1642666545600,0.466,3134.6,3134.2,2.71900833]
[1642666545601,0.466,3134.6,3134.2,2.72412414]
[1642666545799,0.466,3134.6,3134.3,2.72355572]
[1642666546000,2.70070123,3134.5,3134.4,2.71900833]
[1642666546200,3.16670123,3134.5,3134.4,2.71900833]
[1642666546400,0.466,3134.5,3134.4,2.71900833]
[1642666547045,3.28853037,3134.5,3134.4,2.71900833]
[1642666547247,3.55,3134.4,3134.3,0.00454739]
[1642666547443,7.38695836,3134.4,3134.3,0.00454739]
[1642666547642,7.38695836,3134.4,3133.9,0.00682108]
[1642666547643,8.98316836,3134.4,3133.9,0.00682108]
[1642666547850,8.98316836,3134.4,3133.8,0.0073895]
[1642666548143,4.75028731,3133.9,3133.7,0.00795793]
[1642666548343,4.2435,3133.8,3133.7,0.00795793]
[1642666548541,4.2435,3133.8,3133.4,0.0096632]
[1642666549547,3.1318532,3133.7,3133.4,0.0096632]
[1642666549851,4.2435,3133.8,3133.3,0.0372912]
[1642666549852,0.5935,3133.6,3133.3,0.0372912]
[1642666550046,0.466,3133.5,3133.3,0.0372912]
[1642666550250,0.1275,3133.4,3133.3,0.0372912]
[1642666550455,0.5935,3133.4,3133.3,0.0372912]
[1642666550701,3.1935,3133.4,3133.3,0.0372912]
[1642666550895,0.5935,3133.4,3133.0,0.9972912]
[1642666551395,0.5935,3133.4,3133.1,0.00170527]
[1642666551596,0.466,3133.4,3133.1,0.00170527]
[1642666551795,2.73515502,3133.3,3133.1,0.00170527]
[1642666551996,0.466,3133.2,3133.1,0.00170527]
[1642666552797,0.79828,3133.5,3133.3,1.15057252]
[1642666552996,0.466,3133.4,3133.3,1.15057252]
[1642666555347,3.30347825,3133.4,3133.3,1.15057252]
[1642666555549,0.466,3133.4,3133.3,1.15057252]
[1642666555748,3.28032752,3133.4,3133.3,1.15057252]
[1642666555948,0.466,3133.4,3133.3,1.15057252]
[1642666556149,3.28327548,3133.4,3133.3,1.15057252]
[1642666556449,0.466,3133.4,3133.3,1.15057252]
[1642666560210,3.9,3133.3,3133.1,0.00170527]
[1642666560425,4.39688632,3133.2,3133.1,0.00170527]
[1642666560605,11.64638632,3133.2,3133.1,0.00170527]
[1642666560805,8.5139,3133.2,3133.1,0.00170527]
[1642666561507,7.2139,3133.2,3133.1,0.00170527]
[1642666562751,0.466,3133.2,3133.1,0.00170527]
[1642666564446,0.466,3133.2,3133.0,0.94899647]
[1642666567005,1.26431,3133.2,3133.0,0.94899647]
[1642666567304,0.466,3133.2,3133.1,2.72021548]
[1642666567907,0.1275,3133.5,3133.2,0.932]
[1642666568105,0.5935,3133.5,3133.3,2.72021548]
[1642666568305,2.89766991,3133.4,3133.3,2.72021548]
[1642666568507,4.66366991,3133.4,3133.3,2.72021548]
[1642666569648,4.79116991,3133.4,3133.3,2.72021548]
[1642666569848,0.59520527,3133.4,3133.3,2.72021548]
[1642666570047,3.71185137,3133.4,3133.3,2.72021548]
[1642666570249,0.59520527,3133.4,3133.3,2.72021548]
[1642666570451,1.59520527,3133.4,3133.3,2.72021548]
[1642666571447,3.64520527,3133.4,3133.3,2.72021548]
[1642666572049,4.7,3133.3,3133.2,0.932]
[1642666572250,8.43256786,3133.3,3133.2,0.932]
[1642666572451,9.73370471,3133.3,3133.2,0.932]
[1642666572850,3.90620471,3133.3,3133.2,0.932]
[1642666573055,4.60620471,3133.3,3133.2,0.932]
[1642666573295,3.60620471,3133.3,3133.2,0.932]
[1642666575801,3.90620471,3133.3,3133.2,0.932]
[1642666576703,3.60620471,3133.3,3133.2,0.932]
[1642666578149,5.69842,3133.1,3133.0,0.94899647]
[1642666578346,9.82371706,3133.1,3133.0,0.94899647]
[1642666578546,10.82371706,3133.1,3133.0,0.94899647]
[1642666578748,11.12371706,3133.1,3133.0,0.94899647]
[1642666579147,6.2160227,3133.1,3133.0,0.94899647]
[1642666579346,4.9,3133.0,3132.9,0.01]
[1642666579548,15.43743062,3133.0,3132.9,0.01]
[1642666579748,15.43743062,3133.0,3132.9,0.01113685]
[1642666579749,15.55983062,3133.0,3132.9,0.01113685]
[1642666579948,4.9,3132.9,3132.0,3.6844]
[1642666580153,0.79862,3132.7,3132.0,3.6844]
[1642666580351,1.21918679,3132.5,3132.2,0.00397896]
[1642666580552,0.466,3132.4,3132.2,0.00397896]
[1642666580799,6.288,3132.4,3132.2,0.00397896]
[1642666581198,3.49865,3132.3,3132.2,0.00397896]
[1642666581494,2.75,3132.2,3131.9,0.01]
[1642666581693,6.69938479,3132.2,3131.9,0.01]
[1642666582997,5.92395,3132.3,3132.2,0.40433234]
[1642666583200,9.26526552,3132.3,3132.2,0.40433234]
[1642666584442,9.26526552,3132.3,3132.2,0.42525114]
[1642666585045,6.38995,3132.3,3132.2,0.42525114]
[1642666585246,9.23159283,3132.3,3132.2,0.42525114]
[1642666585448,2.9,3132.2,3131.9,0.01]
[1642666585646,3.366,3132.2,3131.9,0.01]
[1642666586246,0.466,3132.2,3131.9,0.01]
[1642666589601,3.38779728,3132.2,3131.9,0.01]
[1642666590402,3.38779728,3132.2,3131.9,1.62414059]
[1642666590604,0.466,3132.2,3131.9,1.62414059]
[1642666590804,3.32990169,3132.2,3131.9,1.62414059]
[1642666591004,3.32990169,3132.2,3131.9,0.01]
[1642666591208,3.32990169,3132.2,3131.9,1.62414059]
[1642666591407,0.466,3132.2,3131.9,1.62414059]
[1642666591808,0.466,3132.2,3132.0,1.61414059]
[1642666592249,0.466,3132.2,3132.1,2.73096215]
[1642666593754,0.466,3132.2,3132.1,4.34510274]
[1642666594353,3.24773529,3132.2,3132.1,2.73096215]
[1642666594551,0.466,3132.2,3132.1,2.73096215]
[1642666597218,5.29622635,3132.2,3132.1,2.73096215]
[1642666597418,2.466,3132.2,3132.1,2.73096215]
[1642666597620,0.466,3132.2,3132.1,2.73096215]
[1642666598224,3.31420331,3132.2,3132.1,2.73096215]
[1642666598622,0.466,3132.2,3132.1,2.73096215]
[1642666598822,0.466,3132.2,3131.9,0.01]
[1642666598823,2.6,3132.1,3131.9,0.01]
[1642666599026,0.466,3132.0,3131.9,0.01]
[1642666600052,2.566,3132.0,3131.9,0.01]
[1642666600856,3.53760185,3132.0,3131.9,0.01]
[1642666601057,3.43071758,3132.0,3131.9,0.01]
[1642666601255,3.39553577,3132.0,3131.9,0.01]
[1642666601456,3.39197182,3132.0,3131.9,0.01]
[1642666601659,0.466,3132.0,3131.9,0.01]
[1642666603295,3.46328219,3132.0,3131.9,0.01]
[1642666603495,0.466,3132.0,3131.9,0.01]
[1642666605199,3.43957115,3132.0,3131.9,0.01]
[1642666605401,0.466,3132.0,3131.9,0.01]
[1642666606700,3.38528686,3132.0,3131.9,0.01]